bitfinex/quotes_ETHUSD_20250328
["timestamp","ask_amount","ask_price","bid_price","bid_amount"]
[1743192572086,10.29362085,1885.0,1884.8,0.11802619]
[1743192572254,1.02936209,1884.9,1884.8,0.11802619]
[1743192572466,1.02936209,1884.9,1884.6,5.306]
[1743192572693,1.02936209,1884.9,1884.8,0.11808727]
[1743192572896,1.02936209,1884.9,1884.6,5.306]
[1743192573093,1.02936209,1884.9,1884.8,0.11808727]
[1743192575194,18.45746294,1884.9,1884.5,10.47541]
[1743192575409,12.67686708,1884.8,1884.6,0.11808727]
[1743192575608,0.7803,1884.7,1884.5,5.17]
[1743192575907,6.08618,1884.7,1884.6,0.11808727]
[1743192576888,6.08618,1884.7,1884.4,5.30672]
[1743192577194,15.20951085,1884.7,1884.3,5.30677]
[1743192577396,5.30729,1884.2,1884.1,0.05]
[1743192577600,12.95343085,1884.2,1884.1,0.05]
[1743192578596,9.13619,1884.2,1884.1,0.05]
[1743192579175,3.8289,1884.2,1884.1,0.05]
[1743192579383,0.38289,1884.2,1884.1,0.05]
[1743192582073,5.69018,1884.2,1884.1,0.05]
[1743192582398,6.52068,1884.2,1884.1,0.05]
[1743192582567,10.33792085,1884.2,1884.1,0.16243903]
[1743192582770,10.33792085,1884.2,1884.1,0.05]
[1743192582968,10.33792085,1884.2,1884.1,0.16243903]
[1743192587392,5.03063085,1884.2,1884.1,0.16243903]
[1743192587599,4.20013085,1884.2,1884.1,0.16243903]
[1743192587799,0.38289,1884.2,1884.1,0.16243903]
[1743192589173,5.69018,1884.2,1884.1,0.16243903]
[1743192590846,9.50742085,1884.2,1884.1,0.16243903]
[1743192591169,10.05742085,1884.2,1884.1,0.16243903]
[1743192592125,13.05742085,1884.2,1884.1,0.16243903]
[1743192592328,13.87602085,1884.2,1884.1,0.16243903]
[1743192592824,5.30816,1883.9,1883.6,0.30643903]
[1743192593120,0.530816,1883.9,1883.6,0.30643903]
[1743192593322,0.530816,1883.9,1883.6,5.30885]
[1743192594111,5.838976,1883.9,1883.6,5.30885]
[1743192594317,5.838976,1883.9,1883.5,6.11122]
[1743192594610,5.30843,1883.8,1883.5,6.11122]
[1743192594806,5.97803232,1883.8,1883.5,0.8021]
[1743192595009,5.97803232,1883.8,1883.5,6.11135]
[1743192596207,0.66960232,1883.8,1883.5,6.1112]
[1743192596412,0.66960232,1883.8,1883.6,5.30894]
[1743192596811,5.30787,1884.0,1883.7,5.3087]
[1743192597716,5.30787,1884.0,1883.6,5.30888]
[1743192598130,5.30787,1884.0,1883.6,10.61765]
[1743192598295,5.30787,1884.0,1883.7,5.30865]
[1743192599435,3.0,1884.0,1883.7,5.3085]
[1743192599991,3.0,1884.0,1883.7,5.30846]
[1743192600219,3.0,1884.0,1883.8,5.41732967]
[1743192600419,3.0,1884.0,1883.8,0.10895967]
[1743192601024,5.30703,1884.3,1883.9,5.30804]
[1743192601194,12.19983,1884.3,1883.9,6.08347]
[1743192601393,12.19983,1884.3,1884.0,0.10895967]
[1743192603833,17.50702,1884.3,1884.0,0.10895967]
[1743192604552,12.12468085,1884.2,1884.0,0.10895967]
[1743192604699,9.94811085,1884.1,1884.0,0.10895967]
[1743192605025,10.61602,1884.0,1883.6,5.30887]
[1743192605198,5.30828,1883.9,1883.7,0.109876]
[1743192605398,5.30828,1883.9,1883.5,6.06185]
[1743192605609,5.30828,1883.9,1883.6,5.418826]
[1743192605817,8.30789,1884.0,1883.6,5.418826]
[1743192606178,3.0,1884.0,1883.6,0.109876]
[1743192606428,8.3087,1883.7,1883.6,0.109876]
[1743192606725,8.3087,1883.7,1883.3,5.30957]
[1743192606903,8.3087,1883.7,1883.6,0.109876]
[1743192607111,8.3087,1883.7,1883.3,5.30957]
[1743192607630,8.3087,1883.7,1883.4,0.11158663]
[1743192607826,0.83087,1883.6,1883.4,0.11158663]
[1743192608002,6.14001,1883.6,1883.2,6.10589]
[1743192608199,10.45128085,1883.4,1883.3,0.11158663]
[1743192608403,3.0,1883.2,1882.8,5.31113]
[1743192608603,3.0,1883.2,1882.9,0.10659333]
[1743192608821,8.31015,1883.2,1882.8,5.31113]
[1743192609000,3.0,1883.2,1882.9,0.10659333]
[1743192609196,7.58693832,1883.4,1882.7,0.7958]
[1743192609402,6.06,1883.4,1883.1,0.8092]
[1743192609627,6.06,1883.4,1883.1,6.11956]
[1743192609824,6.06,1883.4,1883.2,0.10659333]
[1743192610127,14.36931,1883.5,1883.2,0.10659333]
[1743192610339,6.06,1883.5,1883.3,5.30967]
[1743192610522,6.06,1883.5,1883.4,5.30954]
[1743192610826,6.06,1883.5,1883.4,0.10842588]
[1743192611025,6.06,1883.5,1883.3,5.30967]
[1743192611224,6.06,1883.5,1883.4,0.10842588]
[1743192611433,6.06,1883.5,1883.3,5.30967]
[1743192611733,6.06,1883.5,1883.4,0.10842588]
[1743192612331,6.06,1883.5,1883.2,5.3101]
[1743192612633,6.06,1883.5,1883.1,6.11956]
[1743192612634,11.36926,1883.5,1883.1,11.42978]
[1743192612822,11.36926,1883.5,1883.2,0.10842588]
[1743192613531,6.06,1883.5,1883.3,5.3098]
[1743192614105,6.06,1883.5,1883.4,0.10842588]
[1743192614526,6.666,1883.5,1883.3,5.3098]
[1743192614702,6.666,1883.5,1883.4,0.10842588]
[1743192615102,6.666,1883.5,1883.2,5.30995]
[1743192615319,6.666,1883.5,1883.4,0.10842588]
[1743192615525,6.666,1883.5,1883.2,5.30995]
[1743192616138,6.666,1883.5,1883.3,0.10842588]
[1743192617832,11.97527,1883.5,1883.3,0.10842588]
[1743192618033,0.97730832,1883.4,1883.1,6.11953]
[1743192618235,0.97730832,1883.4,1883.2,0.10842588]
[1743192619137,0.97730832,1883.4,1883.2,5.41851588]
[1743192619439,6.06,1883.5,1883.2,5.41851588]
[1743192619440,6.06,1883.5,1883.2,5.41840588]
[1743192620634,11.36935,1883.5,1883.2,0.10842588]
[1743192622053,11.36935,1883.5,1883.2,5.41850588]
[1743192625255,6.06,1883.5,1883.2,5.41850588]
[1743192625634,6.06,1883.5,1883.2,10.72847588]
[1743192625835,6.06,1883.5,1883.2,5.41839588]
[1743192627663,6.06,1883.5,1883.2,10.72840588]
[1743192627867,11.36919,1883.6,1883.2,10.72840588]
[1743192628166,11.36919,1883.6,1883.2,5.41839588]
[1743192628335,16.67835,1883.6,1883.2,5.41839588]
[1743192628539,6.06,1883.6,1883.3,5.3096]
[1743192628940,11.36899,1883.6,1883.4,0.10928096]
[1743192629342,11.36899,1883.6,1883.2,10.62003]
[1743192629550,11.36899,1883.6,1883.5,0.10928096]
[1743192629751,11.36899,1883.6,1883.2,5.30993]
[1743192629952,11.36899,1883.6,1883.5,0.10928096]
[1743192630474,11.36899,1883.6,1883.3,5.30979]
[1743192630638,11.36899,1883.6,1883.4,0.10928096]
[1743192630969,11.36899,1883.6,1883.3,5.30979]
[1743192631470,11.36899,1883.6,1883.4,0.10958638]
[1743192631673,11.36899,1883.6,1883.3,5.30979]
[1743192631882,11.36899,1883.6,1883.4,0.21727395]
[1743192632051,11.36899,1883.6,1883.3,5.30979]
[1743192632371,11.36899,1883.6,1883.4,0.21727395]
[1743192632762,11.36899,1883.6,1883.3,5.30979]
[1743192635441,11.36899,1883.6,1883.2,10.62]
[1743192635642,16.67815,1883.6,1883.2,5.30998]
[1743192635971,11.36899,1883.6,1883.2,5.30998]
[1743192637173,16.67819,1883.6,1883.2,5.30998]
[1743192637373,11.36899,1883.6,1883.2,5.30998]
[1743192637746,11.36899,1883.6,1883.2,10.61995]
[1743192641485,11.36899,1883.6,1883.2,5.30997]
[1743192641790,11.36899,1883.6,1883.2,5.30994]
[1743192642159,11.36899,1883.6,1883.2,10.61988]
[1743192642668,11.36899,1883.6,1883.3,0.21727395]
[1743192643190,16.67817,1883.6,1883.3,0.21727395]
[1743192643391,11.36899,1883.6,1883.3,0.21727395]
[1743192643994,6.06,1883.6,1883.3,5.52699395]
[1743192644157,11.36901,1883.6,1883.3,5.52699395]
[1743192644958,11.36901,1883.6,1883.3,0.21727395]
[1743192646597,11.36901,1883.6,1883.3,5.52705395]
[1743192647199,6.867,1883.9,1883.4,0.8173]
[1743192647371,6.06,1883.9,1883.8,5.30841]
[1743192647567,6.06,1884.2,1883.9,5.30798]
[1743192647886,6.06,1884.2,1883.9,5.30813]
[1743192648069,1.38737121,1884.1,1883.9,10.61614]
[1743192648270,1.38737121,1884.1,1884.0,0.2166632]
[1743192648470,6.06,1884.2,1884.0,0.2166632]
[1743192648692,0.606,1884.1,1884.0,0.2166632]
[1743192649775,6.06,1884.2,1884.0,5.5245132]
[1743192649974,6.06,1884.2,1884.0,6.3418132]
[1743192650270,6.06,1884.3,1884.0,11.6495032]
[1743192650471,3.0,1884.3,1884.0,11.6495032]
[1743192650703,3.0,1884.3,1884.0,6.3416532]
[1743192651409,0.3,1884.2,1884.0,6.3416532]
[1743192651916,12.17874,1884.4,1884.0,6.3417932]
[1743192652117,12.17874,1884.4,1884.0,1.0339632]
[1743192652409,12.17874,1884.4,1884.0,6.3418032]
[1743192652613,6.81724085,1884.3,1884.0,0.2166632]
[1743192652815,9.90421085,1884.1,1884.0,0.2166632]
[1743192652985,6.08697,1884.1,1883.7,6.08928]
[1743192653503,6.08697,1884.1,1883.8,0.21391533]
[1743192654093,0.7794,1884.1,1883.8,5.52207533]
[1743192654314,5.30751,1884.2,1883.9,5.30813]
[1743192654704,5.30751,1884.2,1884.0,0.21391533]
[1743192654904,0.530751,1884.1,1884.0,0.21391533]
[1743192655421,5.838321,1884.1,1884.0,0.21391533]
[1743192655589,5.838321,1884.1,1883.8,5.30836]
[1743192656099,5.838321,1884.1,1883.9,0.21391533]
[1743192658921,5.838321,1884.1,1883.7,11.39788]
[1743192659130,5.838321,1884.1,1883.8,0.21061733]
[1743192659131,0.5838321,1884.0,1883.8,0.21061733]
[1743192660191,1.3950321,1884.0,1883.8,0.21061733]
[1743192660929,6.7029321,1884.0,1883.6,6.10876]
[1743192661228,5.30819,1883.9,1883.7,0.21061733]
[1743192661399,5.30819,1883.9,1883.6,6.10876]
[1743192661598,6.30766622,1883.9,1883.8,0.21061733]
[1743192661798,6.30766622,1883.9,1883.6,6.10876]
[1743192661998,6.30766622,1883.9,1883.8,0.21061733]
[1743192662201,6.30766622,1883.9,1883.6,6.10876]
[1743192662400,6.30766622,1883.9,1883.8,0.21061733]
[1743192662601,6.30766622,1883.9,1883.6,6.10876]
[1743192662794,6.30766622,1883.9,1883.8,0.21061733]
[1743192663025,0.99947622,1883.9,1883.6,6.10863]
[1743192663225,6.06,1884.0,1883.8,0.21061733]
[1743192663433,6.06,1884.0,1883.7,5.30842]
[1743192663804,6.06,1884.0,1883.8,0.21061733]
[1743192664737,6.06,1884.0,1883.8,5.51878733]
[1743192665735,6.06,1884.0,1883.8,0.21061733]
[1743192666032,5.30797,1884.0,1883.8,0.21061733]
[1743192666232,5.30813,1883.9,1883.8,0.21061733]
[1743192666473,10.61609,1884.0,1883.6,6.10858]
[1743192666776,5.30797,1884.0,1883.6,11.41738]
[1743192667076,5.30797,1884.0,1883.7,0.21061733]
[1743192667243,0.530797,1883.9,1883.7,5.51922733]
[1743192667567,5.30797,1884.0,1883.8,0.21067833]
[1743192667936,5.30797,1884.0,1883.6,6.10858]
[1743192668163,5.30797,1884.0,1883.7,0.21067833]
[1743192668535,5.30797,1884.0,1883.6,11.41736]
[1743192668736,5.30797,1884.0,1883.7,0.2114887]
[1743192668967,5.30797,1884.0,1883.6,11.41736]
[1743192669167,5.30797,1884.0,1883.8,0.21160845]
[1743192669369,5.30797,1884.0,1883.6,11.41736]
[1743192669667,5.30797,1884.0,1883.9,0.21160845]
[1743192669850,5.30797,1884.0,1883.6,11.41736]
[1743192670047,5.30797,1884.0,1883.9,0.21160845]
[1743192670241,5.30797,1884.0,1883.6,11.41736]
[1743192670452,5.30797,1884.0,1883.9,0.21160845]
[1743192670654,16.67546,1884.1,1883.7,5.30867]
[1743192670857,5.30785,1884.0,1883.9,0.21160845]
[1743192671064,5.30785,1884.0,1883.7,5.30867]
[1743192671263,5.30785,1884.0,1883.9,0.21160845]
[1743192671438,5.30785,1884.0,1883.7,5.30867]
[1743192671941,5.30785,1884.0,1883.8,0.21160845]
[1743192672144,5.30785,1884.0,1883.6,6.10858]
[1743192672473,5.30785,1884.0,1883.7,0.21160845]
[1743192672645,16.67537,1884.1,1883.7,5.30867]
[1743192673039,16.67537,1884.1,1883.8,0.21160845]
[1743192674737,11.36759,1884.1,1883.8,0.21160845]
[1743192675143,16.67537,1884.1,1883.8,0.21160845]
[1743192675759,6.06,1884.1,1883.8,5.51989845]
[1743192676445,6.06,1884.1,1883.8,10.82820845]
[1743192676860,6.06,1884.1,1883.8,5.51989845]
[1743192677062,6.06,1884.1,1884.0,5.30785]
[1743192677376,6.07815,1884.4,1884.0,10.82672532]
[1743192677553,6.685965,1884.4,1884.0,10.82672532]
[1743192677749,11.36656,1884.5,1884.1,5.30753]
[1743192677950,16.67323,1884.5,1884.1,5.30753]
[1743192678159,16.67323,1884.5,1884.2,0.21119532]
[1743192678543,5.30674,1884.4,1884.2,0.21119532]
[1743192679155,18.73425085,1884.3,1884.2,0.21119532]
[1743192679366,0.8116,1883.8,1883.2,0.8188]
[1743192679583,5.30912,1883.6,1883.2,6.12888]
[1743192679766,5.30912,1883.6,1883.3,0.18985141]
[1743192680887,6.3879709,1883.7,1883.3,5.49951141]
[1743192681178,12.1801,1883.8,1883.4,10.61894]
[1743192681479,11.3685,1883.8,1883.5,1.01151665]
[1743192681847,6.06,1883.8,1883.7,5.3087]
[1743192682178,8.85080114,1884.1,1883.5,2.17454331]
[1743192682179,2.47898155,1884.1,1883.8,6.12721]
[1743192682351,6.39928034,1884.1,1883.8,0.8188]
[1743192682552,5.30767,1884.1,1883.8,0.8188]
[1743192682755,5.30767,1884.1,1883.9,0.19271665]
[1743192683153,11.36737,1884.2,1883.9,0.19271665]
[1743192683349,6.11922,1884.1,1883.9,0.19271665]
[1743192683649,6.11922,1884.1,1883.7,5.30863]
[1743192683856,6.11922,1884.1,1883.8,0.19271665]
[1743192684580,11.36732,1884.2,1883.8,5.50087665]
[1743192684581,6.06,1884.2,1883.8,5.50087665]
[1743192684788,6.06,1884.2,1883.9,6.10049]
[1743192684965,11.36729,1884.2,1883.9,6.10049]
[1743192685286,11.36729,1884.2,1884.0,0.19271665]
[1743192688386,16.67478,1884.2,1884.0,0.19271665]
[1743192688566,11.36729,1884.2,1884.0,0.19271665]
[1743192688881,11.36729,1884.2,1884.1,0.19033901]
[1743192689187,11.36729,1884.2,1883.8,5.30816]
[1743192689375,11.36729,1884.2,1884.1,0.19033901]
[1743192689573,11.36729,1884.2,1883.8,5.30816]
[1743192690083,11.36729,1884.2,1883.9,0.19033901]
[1743192694213,5.30761,1884.1,1883.9,0.19033901]
[1743192694487,5.838611,1884.0,1883.6,5.30873]
[1743192694689,5.30761,1884.1,1883.7,0.19100951]
[1743192694893,11.3673,1884.2,1883.8,6.05989]
[1743192694894,12.1645,1884.2,1883.8,6.05989]
[1743192695062,17.47201,1884.2,1883.9,0.19100951]
[1743192695492,5.3076,1884.1,1883.9,0.19100951]
[1743192698604,12.1645,1884.2,1883.9,0.19100951]
[1743192698810,16.67486,1884.2,1883.9,0.19100951]
[1743192699915,5.30785,1884.0,1883.9,0.19100951]
[1743192700078,5.30785,1884.0,1883.6,11.38452]
[1743192700409,5.30785,1884.0,1883.7,5.49964951]
[1743192700790,6.0666,1884.1,1883.7,5.49964951]
[1743192701191,6.0666,1884.1,1883.7,10.80821951]
[1743192701508,6.0666,1884.1,1883.7,5.49957951]
[1743192702507,11.36731,1884.2,1883.8,5.30815]
[1743192702709,4.6625106,1884.5,1884.1,5.30739]
[1743192702879,14.4679206,1884.5,1884.2,0.7822]
[1743192703286,13.08054939,1884.5,1884.3,0.18960766]
[1743192703686,5.30672,1884.4,1884.3,0.18960766]
[1743192703897,5.30655,1884.5,1884.2,0.7822]
[1743192704106,5.30655,1884.5,1884.3,0.18960766]
[1743192704779,6.06,1884.7,1884.3,5.49659766]
[1743192704979,6.06,1884.7,1884.5,5.30632]
[1743192705385,6.06,1884.7,1884.6,0.18863268]
[1743192705596,6.06,1884.7,1884.6,5.49479268]
[1743192705799,6.06,1884.7,1884.6,6.26029268]
[1743192706915,5.30484,1885.1,1884.7,5.30571]
[1743192707115,5.30484,1885.1,1884.8,0.18674413]
[1743192708591,12.12812,1885.3,1885.0,0.18674413]
[1743192708788,3.0,1885.2,1885.0,0.18674413]
[1743192709091,5.30475,1885.1,1885.0,0.18674413]
[1743192709492,5.30475,1885.1,1884.7,0.7962]
[1743192709809,5.30475,1885.1,1884.8,0.18674413]
[1743192711098,10.60974,1885.1,1884.8,0.18674413]
[1743192711721,5.30475,1885.1,1884.8,0.18674413]
[1743192713000,8.30461,1885.2,1884.8,0.18674413]
[1743192713201,8.30461,1885.2,1884.8,5.49220413]
[1743192714627,3.0,1885.2,1885.1,5.30475]
[1743192715139,3.0,1885.2,1885.1,5.4857068]
[1743192716449,11.36343,1885.6,1885.1,5.4857068]
[1743192716776,11.36343,1885.6,1885.4,5.30378]
[1743192716777,6.8409,1885.6,1885.4,5.30378]
[1743192716931,6.06,1885.6,1885.5,5.48178558]
[1743192717256,9.74409,1885.6,1885.5,0.17815558]
[1743192717628,6.74409,1885.6,1885.5,0.17815558]
[1743192718024,9.74409,1885.6,1885.5,0.17815558]
[1743192718723,6.8849,1885.9,1885.5,5.48178558]
[1743192719037,6.11,1885.9,1885.5,10.78525558]
[1743192719429,3.0,1885.8,1885.5,10.78525558]
[1743192719625,3.0,1885.8,1885.6,5.30334]
[1743192719952,6.11,1885.9,1885.6,5.30334]
[1743192720248,9.64428,1885.8,1885.7,0.17815558]
[1743192720626,5.30311,1885.7,1885.3,5.30419]
[1743192721043,5.30311,1885.7,1885.4,0.17815558]
[1743192721244,9.64428,1885.8,1885.4,5.48185558]
[1743192721554,0.964428,1885.7,1885.5,0.17815558]
[1743192723854,7.34954507,1885.7,1885.5,0.17815558]
[1743192724054,6.267498,1885.7,1885.5,0.17815558]
[1743192724224,5.30307,1885.7,1885.5,0.17815558]
[1743192724426,5.30307,1885.7,1885.3,5.30405]
[1743192724652,5.30307,1885.7,1885.6,0.17383408]
[1743192724853,5.30307,1885.7,1885.3,10.60808]
[1743192725054,5.30307,1885.7,1885.6,0.17383408]
[1743192725253,5.30307,1885.7,1885.3,10.60808]
[1743192725454,5.30307,1885.7,1885.6,0.17383408]
[1743192725654,5.30307,1885.7,1885.4,5.3039]
[1743192725834,5.30307,1885.7,1885.6,0.17383408]
[1743192726033,9.64428,1885.8,1885.4,5.3039]
[1743192726235,14.94726,1885.8,1885.6,0.17383408]
[1743192726549,9.64428,1885.8,1885.7,0.17383408]
[1743192726747,9.64428,1885.8,1885.4,5.30379]
[1743192726948,9.64428,1885.8,1885.5,0.17383408]
[1743192727258,14.94727,1885.8,1885.5,0.17383408]
[1743192729430,5.30309,1885.7,1885.5,0.17383408]
[1743192730169,5.30309,1885.7,1885.3,5.30406]
[1743192730360,0.530309,1885.6,1885.4,5.47758408]
[1743192730537,9.64428,1885.8,1885.4,5.47758408]
[1743192730743,9.64428,1885.8,1885.5,5.30359]
[1743192731144,9.64428,1885.8,1885.6,0.17383408]
[1743192731671,5.30307,1885.7,1885.6,0.17383408]
[1743192731870,5.30347,1885.6,1885.2,6.11695]
[1743192732372,10.60701,1885.6,1885.2,6.11695]
[1743192732670,10.60701,1885.6,1885.3,0.17492933]
[1743192732867,5.30347,1885.6,1885.3,0.17492933]
[1743192734177,5.30347,1885.6,1885.3,5.47909933]
[1743192734773,5.3031,1885.7,1885.3,5.47909933]
[1743192735185,10.60636,1885.7,1885.3,5.47909933]
[1743192735472,5.30335,1885.6,1885.3,5.47909933]
[1743192737178,5.30335,1885.6,1885.3,0.17492933]
[1743192738270,5.3031,1885.7,1885.3,5.47908933]
[1743192738456,5.30339,1885.6,1885.3,5.47908933]
[1743192738775,5.30339,1885.6,1885.3,0.17492933]
[1743192740108,5.30391,1885.4,1885.3,0.17492933]
[1743192740251,8.85391,1885.4,1885.3,0.17492933]
[1743192740584,5.30469,1885.2,1884.8,0.8249]
[1743192740787,5.30469,1885.2,1884.9,0.16534516]
[1743192741520,5.30475,1885.1,1884.9,0.16534516]
[1743192741798,5.30469,1885.2,1884.9,0.16534516]
[1743192742101,6.365579,1885.2,1884.9,0.16534516]
[1743192742407,5.30469,1885.2,1884.9,0.16534516]
[1743192743377,5.30479,1885.1,1884.9,0.16534516]
[1743192744178,5.30469,1885.2,1884.9,0.16534516]
[1743192744704,10.6094,1885.2,1884.9,0.16534516]
[1743192745068,5.30469,1885.2,1884.9,0.16534516]
[1743192749795,5.30472,1885.2,1884.9,0.16534516]
[1743192749973,5.30455,1885.2,1884.9,0.16534516]
[1743192750374,8.30423,1885.3,1885.0,0.7877]
[1743192750591,3.0,1885.3,1885.0,11.39761]
[1743192750794,3.0,1885.3,1885.1,0.16534516]
[1743192751478,5.30383,1885.5,1885.1,5.47002516]
[1743192751676,5.30383,1885.5,1885.1,5.46993516]
[1743192751902,6.81724085,1885.5,1885.1,0.16534516]
[1743192752122,5.30447,1885.2,1885.1,0.16534516]
[1743192752276,5.30447,1885.2,1884.8,6.09745]
[1743192752476,5.30447,1885.2,1885.1,0.16534516]
[1743192752975,5.30447,1885.2,1884.8,6.09745]
[1743192753175,5.30447,1885.2,1884.9,0.16534516]
[1743192755513,5.30447,1885.2,1884.9,5.47066516]
[1743192756409,6.11069,1885.3,1884.9,5.47066516]
[1743192756615,11.41499,1885.3,1884.9,5.47066516]
[1743192757195,6.11069,1885.3,1884.9,5.47066516]
[1743192759817,6.11069,1885.3,1884.9,0.16534516]
[1743192760019,5.915649,1885.2,1884.9,0.16534516]
[1743192760325,5.30503,1885.0,1884.9,0.16534516]
[1743192760616,5.30482,1885.1,1884.7,5.30582]
[1743192760817,5.30482,1885.1,1884.8,0.168644]
[1743192761307,5.30482,1885.1,1884.8,5.474234]
[1743192761618,0.530482,1885.0,1884.8,5.474234]
[1743192764997,6.06,1885.6,1885.3,5.30407]
[1743192765202,6.06,1885.6,1885.4,0.16980002]
[1743192765412,6.06,1885.6,1885.3,5.30405]
[1743192765611,6.06,1885.6,1885.4,0.16980002]
[1743192765807,6.06,1885.6,1885.3,5.30405]
[1743192766007,6.06,1885.6,1885.4,0.16980002]
[1743192766289,6.06,1885.6,1885.2,6.08105]
[1743192766290,6.06,1885.6,1885.2,0.7766]
[1743192766526,0.05,1885.9,1885.7,5.30299]
[1743192766698,0.05,1885.9,1885.8,5.30278]
[1743192767017,0.05,1885.9,1885.8,6.26755899]
[1743192768456,0.05,1885.9,1885.8,7.4776387]
[1743192768606,0.05,1885.9,1885.8,7.42461389]
[1743192769602,0.05,1885.9,1885.8,6.26755899]
[1743192773350,0.05,1885.9,1885.8,6.32058459]
[1743192773551,0.05,1885.9,1885.8,6.26755899]
[1743192776360,0.05,1885.9,1885.8,6.32057606]
[1743192776719,0.05,1885.9,1885.8,6.26755899]
[1743192777210,0.05,1885.9,1885.8,6.32057602]
[1743192777422,0.05,1885.9,1885.8,6.26755899]
[1743192777709,0.05,1885.9,1885.8,6.32057604]
[1743192777909,0.05,1885.9,1885.8,7.99003261]
[1743192778116,0.7847,1886.8,1886.5,5.3007]
[1743192778555,0.7847,1886.8,1886.6,0.15642262]
[1743192779259,3.7847,1886.8,1886.6,0.15642262]
[1743192780864,3.0,1886.8,1886.6,5.45693262]
[1743192782026,3.0,1886.8,1886.6,10.75731262]
[1743192782760,6.8447,1887.0,1886.6,1.30869388]
[1743192783043,3.81724085,1887.3,1887.0,5.29933]
[1743192783044,0.7847,1887.2,1887.0,5.29933]
[1743192783354,0.7847,1887.2,1887.1,0.15016465]
[1743192783560,3.7847,1887.2,1887.1,0.15016465]
[1743192783769,3.7847,1887.2,1886.9,5.29957]
[1743192784247,3.7847,1887.2,1887.0,0.14973955]
[1743192785534,3.0,1887.2,1887.0,0.14973955]
[1743192785858,6.81724085,1887.2,1886.8,11.36509]
[1743192786032,3.0,1887.2,1887.1,0.14973955]
[1743192786370,3.0,1887.2,1886.8,5.2998]
[1743192786589,3.0,1887.2,1887.1,0.14973955]
[1743192786735,3.0,1887.2,1887.0,5.29939]
[1743192786937,3.0,1887.2,1887.1,0.14973955]
[1743192787346,3.0,1887.2,1887.0,5.29936]
[1743192787550,6.8604,1887.3,1887.1,0.14973955]
[1743192788138,6.06,1887.3,1887.1,0.14973955]
[1743192788341,6.06,1887.3,1887.1,5.44861955]
[1743192788583,6.06,1887.3,1887.1,5.29888]
[1743192788770,9.06,1887.3,1887.2,0.14973955]
[1743192789171,9.06,1887.3,1887.1,5.29888]
[1743192789373,0.7683,1887.4,1887.2,5.44858955]
[1743192789674,6.06,1887.6,1887.4,5.29826]
[1743192789993,0.05,1887.9,1887.7,5.29727]
[1743192790150,0.05,1887.9,1887.8,5.29717]
[1743192790477,0.05,1887.9,1887.8,5.43907702]
[1743192794040,0.05,1887.9,1887.8,6.51271172]
[1743192794176,0.05,1887.9,1887.8,7.27981172]
[1743192797681,0.05,1887.9,1887.8,7.33277155]
[1743192798310,0.05,1887.9,1887.8,7.27981172]
[1743192799032,0.05,1887.9,1887.8,6.51271172]
[1743192799219,0.05,1887.9,1887.8,5.43907702]
[1743192801856,0.05,1887.9,1887.8,0.14190702]
[1743192802031,0.05,1887.9,1887.6,11.39493]
[1743192802220,0.05,1887.9,1887.7,5.42891254]
[1743192802535,0.05,1887.9,1887.7,10.72603254]
[1743192803648,0.05,1887.9,1887.7,5.42872254]
[1743192804248,0.05,1887.9,1887.7,10.72604254]
[1743192805118,0.05,1887.9,1887.8,5.29717]
[1743192805525,0.05,1887.9,1887.8,5.42815736]
[1743192805862,0.05,1887.9,1887.8,6.5006981]
[1743192807572,0.05,1887.9,1887.8,6.55366744]
[1743192807778,0.05,1887.9,1887.8,6.5006981]
[1743192807923,0.05,1887.9,1887.8,6.553664]
[1743192808122,0.05,1887.9,1887.8,6.5006981]
[1743192812228,0.05,1887.9,1887.8,5.42815736]
[1743192812440,0.05,1887.9,1887.8,0.13098736]
[1743192812663,0.05,1887.9,1887.7,5.29726]
[1743192812867,0.05,1887.9,1887.8,0.11928889]
[1743192821756,9.10879,1887.9,1887.8,0.11928889]
[1743192822071,5.29738,1887.8,1887.3,5.29845]
[1743192822283,15.16897,1887.9,1887.4,0.16317054]
[1743192822483,20.46611,1887.9,1887.4,0.87468919]
[1743192822657,20.46611,1887.9,1887.4,6.17285919]
[1743192822856,5.29717,1887.8,1887.4,6.17285919]
[1743192823088,5.29717,1887.8,1887.4,7.32000111]
[1743192823390,10.59456,1887.8,1887.4,7.32000111]
[1743192824284,5.29746,1887.7,1887.4,7.32000111]
[1743192824492,5.29746,1887.7,1887.4,1.25733111]
[1743192824695,5.29746,1887.7,1887.4,0.11018919]
[1743192824877,5.29796,1887.6,1887.2,5.8933]
[1743192825188,5.29801,1887.5,1887.2,5.8933]
[1743192825489,5.29801,1887.5,1887.2,11.19212]
[1743192826780,5.29801,1887.5,1887.2,0.8313]
[1743192826979,10.59682,1887.4,1887.0,6.12559]
[1743192827166,5.29885,1887.2,1886.8,34.164]
[1743192827371,9.88394085,1887.3,1886.8,34.164]
[1743192827595,5.29895,1887.2,1886.9,3.4164]
[1743192827993,3.81724085,1887.1,1886.8,28.038]
[1743192828198,5.30012,1886.8,1886.4,5.30096]
[1743192828367,5.30012,1886.8,1886.4,16.47366]
[1743192828990,5.30012,1886.8,1886.4,11.1727]
[1743192830474,5.30012,1886.8,1886.4,16.47363]
[1743192830674,5.30012,1886.8,1886.5,1.647363]
[1743192831504,5.29916,1887.1,1886.7,5.30014]
[1743192831708,5.29916,1887.1,1886.7,5.35313584]
[1743192831994,5.29916,1887.1,1886.7,5.35313669]
[1743192832691,5.29916,1887.1,1886.7,5.3531371]
[1743192832899,5.29916,1887.1,1886.7,5.30014]
[1743192833188,5.29916,1887.1,1886.7,10.65328709]
[1743192833394,5.29916,1887.1,1886.7,5.30014]
[1743192834087,5.29916,1887.1,1886.7,5.35313707]
[1743192834284,5.29916,1887.1,1886.7,7.94429178]
[1743192834806,5.29916,1887.1,1886.7,5.35313707]